Workbook

Sheet индексы
P1: Приложение. Индексы
A4: Индекс дефлятор "Инвестиции в основной капитал"
A6: Наименование показателя | B6: i | C6: i=2026 | D6: i=2027 | E6: i=2028 | F6: i=2029 | G6: i=2030 | H6: i=2031 | I6: i=2032 | J6: i=2033 | K6: i=2034 | L6: i=2035 | M6: i=2036 | N6: i=2037 | O6: i=2038 | P6: i=2039
A7: Индекс роста стоимости СМР (расчетный год к предыдущему) | B7: % | C7: 104.3% | D7: 104.0% | E7: 104.0% | F7: 104.0% | G7: 104.0% | H7: 104.0% | I7: 104.0% | J7: 104.0% | K7: 104.0% | L7: 104.0% | M7: 104.0% | N7: 104.0% | O7: 104.0% | P7: 104.0%
A8: Индекс роста стоимости СМР (расчетный год к предыдущему) | B8: index i | C8: =C7 -> 1.043 | D8: 1.040 | E8: 1.040 | F8: 1.040 | G8: 1.040 | H8: 1.040 | I8: 1.040 | J8: 1.040 | K8: 1.040 | L8: 1.040 | M8: =M7 -> 1.040 | N8: =N7 -> 1.040 | O8: =O7 -> 1.040 | P8: =P7 -> 1.040
A9: Индексы роста стоимости СМР (расчетный год к 2026) | B9: index i /2026 | C9: =C8 -> 1.043 | D9: =C9*D8 -> 1.085 | E9: 1.128 | F9: 1.173 | G9: 1.220 | H9: 1.269 | I9: 1.320 | J9: =I9*J8 -> 1.373 | K9: =J9*K8 -> 1.427 | L9: 1.485 | M9: 1.544 | N9: 1.606 | O9: 1.670 | P9: 1.737
A11: Наименование показателя | B11: i | C11: i=2040 | D11: i=2041 | E11: i=2042 | F11: i=2043 | G11: i=2044 | H11: i=2045 | I11: i=2046 | J11: i=2047 | K11: i=2048 | L11: i=2049 | M11: i=2050 | N11: i=2051 | O11: i=2052 | P11: i=2053
A12: Индекс роста стоимости СМР (расчетный год к предыдущему) | B12: % | C12: 104.0% | D12: 104.0% | E12: 104.0% | F12: 104.0% | G12: 104.0% | H12: 104.0% | I12: 104.0% | J12: 104.0% | K12: 104.0% | L12: 104.0% | M12: 104.0% | N12: 104.0% | O12: 104.0% | P12: 104.0%
A13: Индекс роста стоимости СМР (расчетный год к предыдущему) | B13: index i | C13: =C12 -> 1.040 | D13: 1.040 | E13: 1.040 | F13: 1.040 | G13: 1.040 | H13: 1.040 | I13: 1.040 | J13: 1.040 | K13: 1.040 | L13: 1.040 | M13: 1.040 | N13: 1.040 | O13: 1.040 | P13: 1.040
A14: Индексы роста стоимости СМР (расчетный год к 2026) | B14: index i /2026 | C14: =P9*C13 -> 1.806 | D14: =C14*D13 -> 1.878 | E14: =D14*E13 -> 1.954 | F14: =E14*F13 -> 2.032 | G14: 2.113 | H14: 2.197 | I14: 2.285 | J14: 2.377 | K14: 2.472 | L14: =K14*L13 -> 2.571 | M14: =L14*M13 -> 2.674 | N14: =M14*N13 -> 2.780 | O14: =N14*O13 -> 2.892 | P14: =O14*P13 -> 3.007
A16: Наименование показателя | B16: i | C16: i=2054 | D16: i=2055 | E16: i=2056 | F16: i=2057 | G16: i=2058 | H16: i=2059 | I16: i=2060 | J16: i=2061 | K16: i=2062 | L16: i=2063
A17: Индекс роста стоимости СМР (расчетный год к предыдущему) | B17: % | C17: 104.0% | D17: 104.0% | E17: 104.0% | F17: 104.0% | G17: 104.0% | H17: 104.0% | I17: 104.0% | J17: 104.0% | K17: 104.0% | L17: 104.0%
A18: Индекс роста стоимости СМР (расчетный год к предыдущему) | B18: index i | C18: =C17 -> 1.040 | D18: 1.040 | E18: 1.040 | F18: 1.040 | G18: =G17 -> 1.040 | H18: 1.040 | I18: 1.040 | J18: 1.040 | K18: 1.040 | L18: 1.040
A19: Индексы роста стоимости СМР (расчетный год к 2026) | B19: index i /2026 | C19: =P14*C18 -> 3.128 | D19: =C19*D18 -> 3.253 | E19: =D19*E18 -> 3.383 | F19: 3.518 | G19: 3.659 | H19: 3.805 | I19: 3.957 | J19: 4.116 | K19: 4.280 | L19: 4.452
A22: Согласно Прогноза долгосрочного социально-экономического развития Российской Федерации (разработан Минэкономразвития России) - в области строительства Прогноз индексов дефляторов и инфляции до 2036 г. (в %, за год к предыдущему году) (базовый вариант) в строке "Инвестиции в основной капитал".
A25: Начальник ПЭО | C25: Ю.П. Жилкина

Sheet график
AE1: Приложение № 3
AE2: к постановлению администрации
AE3: города Усолье - Сибирское
AE4: от «____»_______20__г. № ______
B5: Срок реконструкции Объекта концессионного соглашения
B7: Наименование показателя | C7: i | E7: i=2026 | F7: i=2027 | G7: i=2028 | H7: i=2029 | I7: i=2030 | J7: i=2031 | K7: i=2032 | L7: i=2033 | M7: i=2034 | N7: i=2035 | O7: i=2036 | P7: i=2037 | Q7: i=2038 | R7: i=2039 | S7: i=2040 | T7: i=2041 | U7: i=2042 | V7: i=2043 | W7: i=2044 | X7: i=2045 | Y7: i=2046 | Z7: i=2047 | AA7: i=2048 | AB7: i=2049 | AC7: i=2050 | AD7: i=2051 | AE7: i=2052 | AF7: i=2053 | AG7: i=2054 | AH7: i=2055 | AI7: i=2056 | AJ7: i=2057 | AK7: i=2058
B8: Индекс роста стоимости СМР (расчетный год к предыдущему) | C8: % | E8: =индексы!C7 -> 104.3% | F8: =индексы!D7 -> 104.0% | G8: =индексы!E7 -> 104.0% | H8: =индексы!F7 -> 104.0% | I8: =индексы!G7 -> 104.0% | J8: =индексы!H7 -> 104.0% | K8: =индексы!I7 -> 104.0% | L8: =индексы!J7 -> 104.0% | M8: =индексы!K7 -> 104.0% | N8: =индексы!L7 -> 104.0% | O8: =индексы!M7 -> 104.0% | P8: =индексы!N7 -> 104.0% | Q8: =индексы!O7 -> 104.0% | R8: =индексы!P7 -> 104.0% | S8: =индексы!C12 -> 104.0% | T8: =индексы!D12 -> 104.0% | U8: =индексы!E12 -> 104.0% | V8: =индексы!F12 -> 104.0% | W8: =индексы!G12 -> 104.0% | X8: =индексы!H12 -> 104.0% | Y8: =индексы!I12 -> 104.0% | Z8: =индексы!J12 -> 104.0% | AA8: =индексы!K12 -> 104.0% | AB8: =индексы!L12 -> 104.0% | AC8: =индексы!M12 -> 104.0% | AD8: =индексы!N12 -> 104.0% | AE8: =индексы!O12 -> 104.0% | AF8: =индексы!P12 -> 104.0% | AG8: =индексы!C17 -> 104.0% | AH8: =индексы!D17 -> 104.0% | AI8: =индексы!E17 -> 104.0% | AJ8: =индексы!F17 -> 104.0% | AK8: =индексы!G17 -> 104.0%
B9: Индекс роста стоимости СМР (расчетный год к предыдущему) | C9: index i | E9: =индексы!C8 -> 1.043 | F9: =индексы!D8 -> 1.040 | G9: =индексы!E8 -> 1.040 | H9: =индексы!F8 -> 1.040 | I9: =индексы!G8 -> 1.040 | J9: =индексы!H8 -> 1.040 | K9: =индексы!I8 -> 1.040 | L9: =индексы!J8 -> 1.040 | M9: =индексы!K8 -> 1.040 | N9: =индексы!L8 -> 1.040 | O9: =индексы!M8 -> 1.040 | P9: =индексы!N8 -> 1.040 | Q9: =индексы!O8 -> 1.040 | R9: =индексы!P8 -> 1.040 | S9: =индексы!C13 -> 1.040 | T9: =индексы!D13 -> 1.040 | U9: =индексы!E13 -> 1.040 | V9: =индексы!F13 -> 1.040 | W9: =индексы!G13 -> 1.040 | X9: =индексы!H13 -> 1.040 | Y9: =индексы!I13 -> 1.040 | Z9: =индексы!J13 -> 1.040 | AA9: =индексы!K13 -> 1.040 | AB9: =индексы!L13 -> 1.040 | AC9: =индексы!M13 -> 1.040 | AD9: =индексы!N13 -> 1.040 | AE9: =индексы!O13 -> 1.040 | AF9: =индексы!P13 -> 1.040 | AG9: =индексы!C18 -> 1.040 | AH9: =индексы!D18 -> 1.040 | AI9: =индексы!E18 -> 1.040 | AJ9: =индексы!F18 -> 1.040 | AK9: =индексы!G18 -> 1.040
B10: Индексы роста стоимости СМР (расчетный год к 2024) | C10: index i /2021 | E10: =E9 -> 1.043 | F10: =E10*F9 -> 1.085 | G10: =F10*G9 -> 1.128 | H10: 1.173 | I10: 1.220 | J10: 1.269 | K10: 1.320 | L10: 1.373 | M10: 1.427 | N10: 1.485 | O10: 1.544 | P10: 1.606 | Q10: 1.670 | R10: 1.737 | S10: =R10*S9 -> 1.806 | T10: =S10*T9 -> 1.878 | U10: =T10*U9 -> 1.954 | V10: =U10*V9 -> 2.032 | W10: =V10*W9 -> 2.113 | X10: =W10*X9 -> 2.197 | Y10: =X10*Y9 -> 2.285 | Z10: =Y10*Z9 -> 2.377 | AA10: =Z10*AA9 -> 2.472 | AB10: =AA10*AB9 -> 2.571 | AC10: =AB10*AC9 -> 2.674 | AD10: 2.780 | AE10: 2.892 | AF10: 3.007 | AG10: 3.128 | AH10: 3.253 | AI10: 3.383 | AJ10: 3.518 | AK10: 3.659
B13: Услуга | C13: Объем инвестиций, тыс.рублей (с учетом НДС) | D13: Объем инвестиций, тыс.рублей (без НДС) | E13: 2026 | F13: =E13+1 -> 2027 | G13: =F13+1 -> 2028 | H13: =G13+1 -> 2029 | I13: =H13+1 -> 2030 | J13: =I13+1 -> 2031 | K13: =J13+1 -> 2032 | L13: =K13+1 -> 2033 | M13: =L13+1 -> 2034 | N13: =M13+1 -> 2035 | O13: =N13+1 -> 2036 | P13: =O13+1 -> 2037 | Q13: =P13+1 -> 2038 | R13: =Q13+1 -> 2039 | S13: =R13+1 -> 2040 | T13: =S13+1 -> 2041 | U13: =T13+1 -> 2042 | V13: =U13+1 -> 2043 | W13: =V13+1 -> 2044 | X13: =W13+1 -> 2045 | Y13: =X13+1 -> 2046 | Z13: =Y13+1 -> 2047 | AA13: =Z13+1 -> 2048 | AB13: =AA13+1 -> 2049 | AC13: =AB13+1 -> 2050 | AD13: =AC13+1 -> 2051 | AE13: =AD13+1 -> 2052 | AF13: =AE13+1 -> 2053 | AG13: =AF13+1 -> 2054 | AH13: =AG13+1 -> 2055 | AI13: =AH13+1 -> 2056 | AJ13: =AI13+1 -> 2057 | AK13: =AJ13+1 -> 2058
B14: водоснабжение (питьевая вода) | C14: =D14*1.2 -> 832,155.72 | D14: =SUM(E14:AE14) -> 693,463.10 | E14: ='[1]питьевая вода'!D12 -> 17,141 | F14: ='[1]питьевая вода'!E12 -> 17,781 | G14: ='[1]питьевая вода'!F12 -> 18,356 | H14: ='[1]питьевая вода'!G12 -> 18,950 | I14: ='[1]питьевая вода'!H12 -> 19,565 | J14: ='[1]питьевая вода'!I12 -> 20,201 | K14: ='[1]питьевая вода'!J12 -> 20,859 | L14: ='[1]питьевая вода'!K12 -> 21,539 | M14: ='[1]питьевая вода'!L12 -> 22,244 | N14: ='[1]питьевая вода'!M12 -> 22,972 | O14: ='[1]питьевая вода'!N12 -> 23,726 | P14: ='[1]питьевая вода'!O12 -> 24,506 | Q14: ='[1]питьевая вода'!P12 -> 25,313 | R14: ='[1]питьевая вода'!Q12 -> 26,148 | S14: ='[1]питьевая вода'!R12 -> 27,013 | T14: ='[1]питьевая вода'!S12 -> 27,908 | U14: ='[1]питьевая вода'!T12 -> 28,834 | V14: ='[1]питьевая вода'!U12 -> 29,793 | W14: ='[1]питьевая вода'!V12 -> 30,785 | X14: ='[1]питьевая вода'!W12 -> 31,812 | Y14: ='[1]питьевая вода'!X12 -> 32,876 | Z14: ='[1]питьевая вода'!Y12 -> 33,977 | AA14: ='[1]питьевая вода'!Z12 -> 35,118 | AB14: ='[1]питьевая вода'!AA12 -> 36,299 | AC14: ='[1]питьевая вода'!AB12 -> 37,521 | AD14: ='[1]питьевая вода'!AC12 -> 38,788 | AE14: ='[1]питьевая вода'!AD12 -> 3,437 | AF14: ='[1]питьевая вода'!AE12 -> 0 | AG14: ='[1]питьевая вода'!AF12 -> 43,304 | AH14: ='[1]питьевая вода'!AG12 -> 44,712 | AI14: ='[1]питьевая вода'!AH12 -> 46,168 | AJ14: ='[1]питьевая вода'!AI12 -> 47,673 | AK14: ='[1]питьевая вода'!AJ12 -> 49,228
B15: водоснабжение (техническая вода) | C15: =D15*1.2 -> 132,512.70 | D15: =SUM(E15:AE15) -> 110,427.25 | E15: ='[1]техническая вода'!D12 -> 2,639 | F15: ='[1]техническая вода'!E12 -> 2,750 | G15: ='[1]техническая вода'!F12 -> 2,843 | H15: ='[1]техническая вода'!G12 -> 2,940 | I15: ='[1]техническая вода'!H12 -> 3,041 | J15: ='[1]техническая вода'!I12 -> 3,145 | K15: ='[1]техническая вода'!J12 -> 3,253 | L15: ='[1]техническая вода'!K12 -> 3,366 | M15: ='[1]техническая вода'!L12 -> 3,482 | N15: ='[1]техническая вода'!M12 -> 3,603 | O15: ='[1]техническая вода'!N12 -> 3,729 | P15: ='[1]техническая вода'!O12 -> 3,859 | Q15: ='[1]техническая вода'!P12 -> 3,994 | R15: ='[1]техническая вода'!Q12 -> 4,134 | S15: ='[1]техническая вода'!R12 -> 4,280 | T15: ='[1]техническая вода'!S12 -> 4,431 | U15: ='[1]техническая вода'!T12 -> 4,588 | V15: ='[1]техническая вода'!U12 -> 4,751 | W15: ='[1]техническая вода'!V12 -> 4,921 | X15: ='[1]техническая вода'!W12 -> 5,096 | Y15: ='[1]техническая вода'!X12 -> 5,279 | Z15: ='[1]техническая вода'!Y12 -> 5,468 | AA15: ='[1]техническая вода'!Z12 -> 5,665 | AB15: ='[1]техническая вода'!AA12 -> 5,870 | AC15: ='[1]техническая вода'!AB12 -> 6,082 | AD15: ='[1]техническая вода'!AC12 -> 6,303 | AE15: ='[1]техническая вода'!AD12 -> 914 | AF15: ='[1]техническая вода'!AE12 -> 0 | AG15: ='[1]техническая вода'!AF12 -> 6,976 | AH15: ='[1]техническая вода'!AG12 -> 7,215 | AI15: ='[1]техническая вода'!AH12 -> 7,463 | AJ15: ='[1]техническая вода'!AI12 -> 7,720 | AK15: ='[1]техническая вода'!AJ12 -> 7,986
B16: всего водоснабжение | C16: =SUM(C14:C15) -> 964,668.42 | D16: =SUM(D14:D15) -> 803,890.35 | E16: =E14+E15 -> 19,780 | F16: =F14+F15 -> 20,531 | G16: 21,199 | H16: 21,891 | I16: 22,606 | J16: 23,346 | K16: 24,112 | L16: 24,905 | M16: 25,726 | N16: 26,575 | O16: 27,455 | P16: 28,365 | Q16: 29,307 | R16: 30,283 | S16: 31,293 | T16: 32,339 | U16: 33,422 | V16: 34,544 | W16: 35,706 | X16: 36,909 | Y16: 38,155 | Z16: 39,446 | AA16: 40,783 | AB16: =AB14+AB15 -> 42,168 | AC16: =AC14+AC15 -> 43,603 | AD16: 45,090 | AE16: 4,351 | AF16: 0 | AG16: 50,280 | AH16: 51,928 | AI16: 53,631 | AJ16: 55,392 | AK16: 57,213
B17: всего инвестиции в ценах 2026г. | E17: =E16 -> 19,780 | F17: =F16/E10 -> 19,685 | G17: =G16/F10 -> 19,544 | H17: 19,405 | I17: 19,268 | J17: 19,134 | K17: 19,002 | L17: 18,871 | M17: 18,744 | N17: 18,618 | O17: 18,494 | P17: 18,372 | Q17: 18,253 | R17: 18,135 | S17: 18,019 | T17: 17,905 | U17: 17,793 | V17: 17,683 | W17: 17,575 | X17: 17,468 | Y17: =Y16/X10 -> 17,363 | Z17: =Z16/Y10 -> 17,260 | AA17: 17,159 | AB17: =AB16/AA10 -> 17,060 | AC17: =AC16/AB10 -> 16,962 | AD17: 16,866 | AE17: 1,565 | AF17: 0 | AG17: 16,719 | AH17: 16,603 | AI17: 16,488 | AJ17: 16,374 | AK17: 16,262
B18: водоотведение | C18: =D18*1.2 -> 863,393.84 | D18: =SUM(E18:AE18) -> 719,494.87 | E18: =[1]водоотведение!D12 -> 18,506 | F18: =[1]водоотведение!E12 -> 19,210 | G18: =[1]водоотведение!F12 -> 19,830 | H18: =[1]водоотведение!G12 -> 20,470 | I18: =[1]водоотведение!H12 -> 21,133 | J18: =[1]водоотведение!I12 -> 21,819 | K18: =[1]водоотведение!J12 -> 22,528 | L18: =[1]водоотведение!K12 -> 23,263 | M18: =[1]водоотведение!L12 -> 24,023 | N18: =[1]водоотведение!M12 -> 24,809 | O18: =[1]водоотведение!N12 -> 25,623 | P18: =[1]водоотведение!O12 -> 26,466 | Q18: =[1]водоотведение!P12 -> 27,338 | R18: =[1]водоотведение!Q12 -> 28,241 | S18: =[1]водоотведение!R12 -> 29,175 | T18: =[1]водоотведение!S12 -> 30,143 | U18: =[1]водоотведение!T12 -> 31,144 | V18: =[1]водоотведение!U12 -> 32,182 | W18: =[1]водоотведение!V12 -> 33,256 | X18: =[1]водоотведение!W12 -> 34,368 | Y18: =[1]водоотведение!X12 -> 35,520 | Z18: =[1]водоотведение!Y12 -> 36,713 | AA18: =[1]водоотведение!Z12 -> 37,948 | AB18: =[1]водоотведение!AA12 -> 39,228 | AC18: =[1]водоотведение!AB12 -> 40,554 | AD18: =[1]водоотведение!AC12 -> 9,813 | AE18: =[1]водоотведение!AD12 -> 6,193 | AF18: =[1]водоотведение!AE12 -> 0 | AG18: =[1]водоотведение!AF12 -> 0 | AH18: =[1]водоотведение!AG12 -> 0 | AI18: =[1]водоотведение!AH12 -> 0 | AJ18: =[1]водоотведение!AI12 -> 0 | AK18: =[1]водоотведение!AJ12 -> 0
B19: всего инвестиции в ценах 2026г. | E19: =E18 -> 18,506 | F19: =F18/E10 -> 18,418 | G19: =G18/F10 -> 18,281 | H19: 18,146 | I19: 18,013 | J19: 17,882 | K19: 17,753 | L19: 17,627 | M19: 17,503 | N19: 17,380 | O19: 17,260 | P19: 17,142 | Q19: 17,026 | R19: 16,912 | S19: 16,799 | T19: 16,689 | U19: 16,580 | V19: 16,474 | W19: 16,369 | X19: 16,266 | Y19: 16,164 | Z19: 16,064 | AA19: =AA18/Z10 -> 15,966 | AB19: =AB18/AA10 -> 15,870 | AC19: =AC18/AB10 -> 15,775 | AD19: =AD18/AC10 -> 3,670 | AE19: =AE18/AD10 -> 2,227 | AF19: =AF18/AE10 -> 0 | AG19: =AG18/AF10 -> 0 | AH19: =AH18/AG10 -> 0 | AI19: =AI18/AH10 -> 0 | AJ19: =AJ18/AI10 -> 0 | AK19: =AK18/AJ10 -> 0
B20: Всего объем инвестиций | C20: =C16+C18 -> 1,828,062.26 | D20: =D16+D18 -> 1,523,385.21
B24: Наименование объекта | C24: Сметная стоимость, тыс.рублей (с учетом НДС) | D24: Сметная стоимость, тыс.рублей (без НДС) | E24: 2026 | F24: =E24+1 -> 2027 | G24: 2028 | H24: 2029 | I24: 2030 | J24: 2031 | K24: 2032 | L24: 2033 | M24: 2034 | N24: 2035 | O24: 2036 | P24: 2037 | Q24: 2038 | R24: 2039 | S24: 2040 | T24: 2041 | U24: 2042 | V24: 2043 | W24: 2044 | X24: 2045 | Y24: 2046 | Z24: 2047 | AA24: 2048 | AB24: 2049 | AC24: 2050 | AD24: 2051 | AE24: 2052 | AF24: 2053 | AG24: 2054 | AH24: 2055 | AI24: 2056 | AJ24: 2057 | AK24: 2058
B25: Реконструкция существующих сетей водоснабжения
B26: =#REF! ->  | C26: 459,283.5 | D26: =C26/1.2 -> 382,736.3 | E26: =E17 -> 19,780 | F26: =F17 -> 19,685 | G26: 19,544 | H26: 19,405 | I26: 19,268 | J26: 19,134 | K26: 19,002 | L26: 18,871 | M26: 18,744 | N26: 18,618 | O26: 18,494 | P26: 18,372 | Q26: 18,253 | R26: 18,135 | S26: 18,019 | T26: 17,905 | U26: 17,793 | V26: =V17 -> 17,683 | W26: =W17 -> 17,575 | X26: 17,468 | Y26: =Y17-6372.6 -> 10,991 | AL26: =SUM(E26:AK26) -> 382,736.3 | AM26: =AL26-D26 -> 0.0
B27: =#REF! ->  | C27: 111,892.2 | D27: =C27/1.2 -> 93,243.5 | Y27: =Y17-Y26 -> 6,373 | Z27: 17,260 | AA27: 17,159 | AB27: 17,060 | AC27: 16,962 | AD27: 16,866 | AE27: =AE17-AE26 -> 1,565 | AL27: =SUM(E27:AK27) -> 93,243.5 | AM27: =AL27-D27 -> -0.0
C28: =SUM(C26:C27) -> 571,175.7 | D28: 475,979.7 | E28: 19,780 | F28: 19,685 | G28: 19,544 | H28: 19,405 | I28: 19,268 | J28: 19,134 | K28: 19,002 | L28: 18,871 | M28: 18,744 | N28: 18,618 | O28: 18,494 | P28: 18,372 | Q28: 18,253 | R28: 18,135 | S28: 18,019 | T28: 17,905 | U28: 17,793 | V28: 17,683 | W28: 17,575 | X28: 17,468 | Y28: 17,363 | Z28: 17,260 | AA28: 17,159 | AB28: 17,060 | AC28: 16,962 | AD28: 16,866 | AE28: 1,565 | AF28: 0 | AG28: 0 | AH28: 0 | AI28: 0 | AJ28: 0
B29: Реконструкция существующих сетей водоотведения
B30: =#REF! ->  | C30: 260,428.9 | D30: =C30/1.2 -> 217,024.1 | E30: =E19 -> 18,506 | F30: =F19 -> 18,418 | G30: 18,281 | H30: 18,146 | I30: 18,013 | J30: 17,882 | K30: 17,753 | L30: 17,627 | M30: 17,503 | N30: 17,380 | O30: 17,260 | P30: 17,142 | Q30: =Q19-13913.5 -> 3,112 | AL30: =SUM(E30:AK30) -> 217,024.1 | AM30: =AL30-D30 -> -0.0
B31: =#REF! ->  | C31: 258,810.3 | D31: 215,675.2 | Q31: =Q19-Q30 -> 13,914 | R31: 16,912 | S31: 16,799 | T31: 16,689 | U31: 16,580 | V31: 16,474 | W31: 16,369 | X31: 16,266 | Y31: =Y19-Y30 -> 16,164 | Z31: =Z19-Z30 -> 16,064 | AA31: =AA19-AA30 -> 15,966 | AB31: =AB19-AB30-16.3 -> 15,854 | AC31: =AC19-AC30-16.3 -> 15,759 | AD31: 3,654 | AE31: 2,211 | AL31: =SUM(E31:AK31) -> 215,675.2 | AM31: =AL31-D31 -> -0.0
C32: =SUM(C30:C31) -> 519,239.2 | D32: 432,699.3 | E32: 18,506 | F32: 18,418 | G32: 18,281 | H32: 18,146 | I32: 18,013 | J32: 17,882 | K32: 17,753 | L32: 17,627 | M32: 17,503 | N32: 17,380 | O32: 17,260 | P32: 17,142 | Q32: 17,026 | R32: 16,912 | S32: 16,799 | T32: 16,689 | U32: 16,580 | V32: 16,474 | W32: 16,369 | X32: 16,266 | Y32: 16,164 | Z32: 16,064 | AA32: 15,966 | AB32: 15,854 | AC32: 15,759 | AD32: 3,654 | AE32: 2,211 | AF32: 0 | AG32: 0 | AH32: 0 | AI32: 0 | AJ32: 0
C33: =C28+C32 -> 1,090,414.8 | D33: 908,679.0 | E33: 38,286 | F33: 38,103 | G33: 37,824 | H33: 37,550 | I33: 37,281 | J33: 37,016 | K33: 36,755 | L33: 36,498 | M33: 36,246 | N33: 35,998 | O33: 35,754 | P33: 35,514 | Q33: 35,279 | R33: 35,047 | S33: 34,818 | T33: 34,594 | U33: 34,373 | V33: 34,157 | W33: 33,943 | X33: 33,734 | Y33: 33,527 | Z33: 33,325 | AA33: 33,126 | AB33: 32,913 | AC33: 32,721 | AD33: 20,520 | AE33: 3,776 | AF33: 0 | AG33: 0 | AH33: 0 | AI33: 0 | AJ33: 0
B36: Мэр города | AD36: М.В. Торопкин
Q38: =Q30/Q32 -> 0.1828086195 | Y38: =Y26/Y28 -> 0.6329845812
Q39: =Q31/Q32 -> 0.8171913805 | Y39: =Y27/Y28 -> 0.3670154188
